bitfinex/quotes_ETHUSD_20250414
["timestamp","ask_amount","ask_price","bid_price","bid_amount"]
[1744655492056,18.32586,1641.3,1640.9,7.395888]
[1744655492263,12.18658,1641.2,1640.9,1.301788]
[1744655492425,12.18658,1641.2,1640.8,6.92371]
[1744655492624,6.09324,1641.2,1640.8,6.92371]
[1744655492982,6.09324,1641.2,1640.8,6.92366]
[1744655493621,6.09324,1641.2,1640.8,13.01813]
[1744655494159,12.18655,1641.2,1640.8,6.92366]
[1744655494368,6.09324,1641.2,1640.8,6.92366]
[1744655494545,6.09388,1641.0,1640.7,4.0]
[1744655495068,6.90564,1641.1,1640.7,4.0]
[1744655495069,12.99927,1641.1,1640.7,10.09492]
[1744655496261,12.99927,1641.1,1640.7,6.09492]
[1744655496632,6.09394,1641.0,1640.6,6.91831]
[1744655496860,0.690604,1641.0,1640.4,6.89641]
[1744655497043,6.0947,1640.8,1640.5,4.0]
[1744655497243,6.09533,1640.6,1640.5,4.0]
[1744655498180,6.09533,1640.6,1640.3,5.668]
[1744655499645,6.14,1640.7,1640.3,5.668]
[1744655499844,6.14,1640.7,1640.5,6.0957]
[1744655500147,12.23496,1640.7,1640.4,1.3825]
[1744655500467,6.09533,1640.6,1640.3,5.668]
[1744655500777,6.894,1640.7,1640.4,6.09597]
[1744655500979,6.09546,1640.6,1640.3,5.668]
[1744655501169,6.09533,1640.6,1640.3,5.668]
[1744655501352,6.09607,1640.4,1640.3,5.668]
[1744655501752,6.09607,1640.4,1640.1,47.515]
[1744655502183,6.09607,1640.4,1640.1,53.61217]
[1744655502347,0.7515,1640.4,1640.0,0.7944]
[1744655502543,6.09667,1640.3,1640.1,4.0]
[1744655502985,7.391102,1640.3,1639.9,11.76581]
[1744655503183,6.09693,1640.2,1639.9,5.668]
[1744655503478,6.09693,1640.2,1640.0,4.0]
[1744655504483,6.09693,1640.2,1639.9,11.76592]
[1744655504684,13.487612,1640.3,1639.9,11.76578]
[1744655505186,13.487572,1640.3,1639.9,11.76578]
[1744655505395,6.09682,1640.2,1639.9,11.76578]
[1744655505684,0.8234,1640.0,1639.7,6.09856]
[1744655505862,6.92106,1640.0,1639.6,18.61628]
[1744655506184,6.92106,1640.0,1639.7,6.09862]
[1744655506385,0.8234,1640.0,1639.8,6.09818]
[1744655506584,8.2494682,1640.2,1639.8,6.09816]
[1744655506886,0.82494682,1640.1,1639.8,6.09816]
[1744655507559,6.90069,1640.2,1639.8,6.09816]
[1744655507760,6.9245,1640.4,1640.0,6.91572]
[1744655507967,6.9245,1640.4,1640.1,12.19411]
[1744655508165,6.9245,1640.4,1640.1,6.09705]
[1744655508488,8.9520653,1640.4,1640.1,6.09705]
[1744655508988,6.14,1640.4,1640.2,6.0965]
[1744655509290,6.14,1640.4,1640.2,12.19321]
[1744655509491,6.14,1640.4,1640.2,6.0965]
[1744655510068,6.14,1640.4,1640.3,6.09644]
[1744655511191,6.14,1640.4,1640.2,6.0965]
[1744655511391,6.14,1640.4,1640.2,12.19319]
[1744655511891,6.14,1640.4,1640.3,6.09644]
[1744655512100,6.14,1640.4,1640.2,12.19319]
[1744655512299,6.14,1640.4,1640.3,6.09644]
[1744655512800,6.9227,1640.6,1640.3,6.09644]
[1744655512999,14.929315,1640.6,1640.2,12.19315]
[1744655513305,8.833985,1640.6,1640.3,6.09642]
[1744655513670,8.833985,1640.6,1640.4,6.09605]
[1744655513970,6.9227,1640.6,1640.3,6.09642]
[1744655514170,6.9227,1640.6,1640.3,12.19284]
[1744655514378,0.6,1640.5,1640.4,6.09578]
[1744655515204,0.6,1640.5,1640.4,15.64661451]
[1744655515361,6.14,1641.1,1640.9,6.09399]
[1744655515561,6.09349,1641.1,1640.8,0.7627]
[1744655515765,6.0939,1641.0,1640.6,12.95296]
[1744655516600,0.55,1641.1,1640.6,0.7627]
[1744655516802,6.09461,1640.8,1640.4,22.62264]
[1744655516962,6.09463,1640.8,1640.4,12.52667]
[1744655517166,7.392738,1640.8,1640.4,6.4307]
[1744655517362,6.09509,1640.7,1640.4,5.668]
[1744655517585,6.88745,1640.6,1640.4,5.668]
[1744655518208,0.7921,1640.6,1640.4,5.668]
[1744655518369,7.438108,1640.8,1640.5,6.0956]
[1744655518901,0.7438108,1640.7,1640.4,6.09598]
[1744655520613,6.90073,1640.6,1640.2,6.85944]
[1744655520905,12.99633,1640.6,1640.3,4.0]
[1744655521092,6.90073,1640.6,1640.3,4.0]
[1744655521293,0.8052,1640.6,1640.3,6.09631]
[1744655521604,8.212508,1640.8,1640.5,6.09569]
[1744655522275,14.307408,1640.8,1640.3,6.09627]
[1744655522599,6.89134,1640.5,1640.1,6.09711]
[1744655522906,0.7955,1640.5,1640.2,10.0967]
[1744655523128,0.7955,1640.5,1640.2,16.19338]
[1744655523314,1.484598,1640.5,1640.2,4.0]
[1744655523485,6.89194,1640.3,1640.2,4.0]
[1744655523689,6.09681,1640.2,1640.1,4.0]
[1744655524093,0.7955,1640.3,1640.1,4.0]
[1744655524292,3.0,1640.4,1640.1,4.0]
[1744655524491,6.9152,1640.5,1640.2,6.09669]
[1744655524699,6.9152,1640.5,1639.9,6.09788]
[1744655524700,6.9152,1640.5,1640.3,6.09619]
[1744655525011,3.8093,1640.7,1640.5,6.09543]
[1744655525213,6.9493,1640.9,1640.6,6.09521]
[1744655525383,6.14,1640.9,1640.7,6.0947]
[1744655525580,6.14,1640.9,1640.7,12.18952]
[1744655525806,6.91675,1641.1,1640.8,6.09454]
[1744655525995,2.738094,1641.1,1640.8,12.18902]
[1744655526199,8.831664,1641.1,1640.7,13.01324]
[1744655526405,6.09398,1641.0,1640.7,0.8235]
[1744655526599,6.09398,1641.0,1640.5,5.668]
[1744655526600,6.09445,1640.9,1640.5,12.58708]
[1744655526813,6.09445,1640.9,1640.6,6.09531]
[1744655527111,7.313248,1640.9,1640.5,18.6826]
[1744655527419,1.218838,1640.9,1640.6,6.09522]
[1744655527605,12.18809,1641.0,1640.6,6.09522]
[1744655527805,6.09394,1641.0,1640.6,12.1904]
[1744655528518,6.09472,1640.8,1640.5,12.58708]
[1744655528813,2.738094,1641.1,1640.5,12.58715]
[1744655528814,6.09427,1640.9,1640.5,12.58715]
[1744655528998,7.313087,1640.9,1640.6,6.09522]
[1744655530024,1.218817,1640.9,1640.6,6.09518]
[1744655530230,5.738094,1641.1,1640.6,6.09533]
[1744655530522,0.8231,1641.1,1640.7,6.0946]
[1744655530727,6.09389,1641.0,1640.7,6.0946]
[1744655531532,0.7991,1640.9,1640.4,6.09588]
[1744655531736,6.09493,1640.8,1640.4,12.19181]
[1744655532181,12.1897,1640.8,1640.4,12.19181]
[1744655532387,12.81122523,1640.8,1640.4,12.19181]
[1744655532639,6.71629523,1640.8,1640.4,12.19181]
[1744655532791,0.6,1640.7,1640.4,12.19181]
[1744655532995,0.6,1640.7,1640.5,6.09554]
[1744655534329,0.6,1640.7,1640.6,6.09533]
[1744655535315,0.6,1640.7,1640.6,8.80491927]
[1744655535681,0.6,1640.7,1640.6,8.743969]
[1744655535959,0.6,1640.7,1640.6,8.80491535]
[1744655536131,0.6,1640.7,1640.6,8.743969]
[1744655538426,0.6,1640.7,1640.6,8.80491547]
[1744655539669,0.6,1640.7,1640.6,8.743969]
[1744655539831,0.6,1640.7,1640.5,17.85811]
[1744655540159,0.6,1640.7,1640.6,6.09533]
[1744655540469,0.6,1640.7,1640.6,9.98100588]
[1744655540629,6.14,1641.1,1640.8,6.0943]
[1744655540822,1.304812,1641.1,1640.8,12.18861]
[1744655541022,19.14137,1641.2,1640.8,12.18861]
[1744655541264,6.09351,1641.1,1640.8,6.0943]
[1744655541467,6.09396,1641.0,1640.7,6.09489]
[1744655542054,6.09357,1641.1,1640.7,6.09484]
[1744655542535,6.09357,1641.1,1640.8,6.09446]
[1744655542747,8.007731,1641.1,1640.8,6.09446]
[1744655542948,6.09391,1641.0,1640.7,12.18967]
[1744655543162,0.8056,1640.9,1640.5,5.666]
[1744655543333,6.89993,1640.9,1640.6,6.09521]
[1744655543661,6.89993,1640.9,1640.6,12.19033]
[1744655543662,0.8056,1640.9,1640.6,12.19033]
[1744655543859,0.8056,1640.9,1640.6,12.19022]
[1744655544233,0.8056,1640.9,1640.7,6.09492]
[1744655544437,0.6,1641.0,1640.8,6.09445]
[1744655544636,1.914161,1641.1,1640.9,12.18842]
[1744655544963,6.14,1641.2,1641.0,12.18756]
[1744655545262,0.05,1641.4,1641.1,6.09329]
[1744655545426,0.8015,1641.3,1641.0,12.18748]
[1744655546057,6.89426,1641.3,1641.0,6.09374]
[1744655546264,12.98722,1641.3,1641.0,6.09374]
[1744655546466,6.89426,1641.3,1641.0,6.09373]
[1744655546632,0.8015,1641.3,1641.0,12.18747]
[1744655547665,0.8015,1641.3,1640.9,5.664]
[1744655547666,6.09321,1641.2,1640.9,11.75817]
[1744655548166,14.409435,1641.3,1641.0,6.09382]
[1744655548526,6.09311,1641.2,1640.9,11.75807]
[1744655548924,6.09351,1641.1,1640.9,5.664]
[1744655549173,1.372551,1641.0,1640.7,6.09486]
[1744655549357,1.372551,1641.0,1640.7,6.09465]
[1744655549687,6.9032,1641.2,1640.9,12.18792]
[1744655549830,12.99632,1641.2,1640.9,6.09396]
[1744655550031,6.9032,1641.2,1640.9,12.95088]
[1744655550243,6.9032,1641.2,1641.0,6.09375]
[1744655550448,6.14,1641.2,1641.0,6.09375]
[1744655551436,12.2331,1641.2,1640.9,12.95088]
[1744655551669,12.2331,1641.2,1640.9,6.85676]
[1744655551878,12.2331,1641.2,1640.9,12.95086]
[1744655552847,6.14,1641.2,1641.0,6.09371]
[1744655553792,19.747925,1641.3,1641.0,6.09371]
[1744655555069,19.747955,1641.3,1641.0,6.09371]
[1744655556104,1.422215,1641.3,1641.1,6.09345]
[1744655556257,6.19,1641.4,1641.3,6.09273]
[1744655556465,0.05,1641.4,1641.3,6.09273]
[1744655556652,0.05,1641.4,1641.2,0.7892]
[1744655556855,6.14237,1641.4,1641.1,6.09341]
[1744655557101,0.05,1641.4,1641.2,6.09309]
[1744655557475,6.14248,1641.4,1641.1,6.09341]
[1744655558208,6.92194,1641.3,1641.0,5.663]
[1744655558427,6.9219,1641.3,1641.0,17.85054]
[1744655558704,6.9219,1641.3,1641.0,11.75672]
[1744655558872,13.0148,1641.3,1641.0,11.75672]
[1744655559207,0.829,1641.3,1641.1,4.0]
[1744655559979,0.829,1641.3,1641.1,10.09336]
[1744655560200,0.829,1641.3,1641.1,6.09336]
[1744655560397,0.829,1641.3,1641.0,11.75664]
[1744655560676,0.05,1641.4,1641.2,6.09282]
[1744655561076,0.05,1641.4,1641.2,16.18582]
[1744655562007,0.05,1641.4,1641.3,6.09273]
[1744655562504,0.05,1641.4,1641.2,10.09282]
[1744655562709,0.05,1641.4,1641.2,6.09282]
[1744655562904,0.05,1641.4,1641.1,12.18682]
[1744655566316,8.062786,1641.4,1641.0,11.75675]
[1744655566490,6.09282,1641.3,1641.1,4.0]
[1744655566691,8.062776,1641.4,1641.1,4.0]
[1744655566891,8.062776,1641.4,1641.1,10.09335]
[1744655567722,14.155286,1641.4,1641.1,10.09335]
[1744655567905,14.155286,1641.4,1641.0,17.85049]
[1744655568112,8.062776,1641.4,1641.1,6.09345]
[1744655568707,8.062776,1641.4,1641.1,12.1869]
[1744655569029,8.062776,1641.4,1641.1,6.09345]
[1744655569230,14.155286,1641.4,1641.1,6.09345]
[1744655569527,8.062776,1641.4,1641.1,6.09337]
[1744655570135,14.155426,1641.4,1641.0,17.85046]
[1744655570308,14.155256,1641.4,1641.0,17.85044]
[1744655570629,14.155256,1641.4,1641.0,12.18744]
[1744655570929,1.4155256,1641.3,1641.0,12.18744]
[1744655571137,14.155256,1641.4,1641.0,12.18744]
[1744655572228,6.09279,1641.3,1641.0,6.09372]
[1744655572443,0.8149,1641.2,1640.8,12.54216]
[1744655572662,12.18724,1641.1,1640.9,4.0]
[1744655572936,13.04807,1641.2,1640.9,10.09411]
[1744655573143,0.6,1641.1,1640.9,10.09411]
[1744655573544,0.6,1641.1,1640.9,16.18821]
[1744655573914,0.6,1641.1,1640.9,10.0941]
[1744655574751,0.6,1641.1,1640.9,16.1882]
[1744655574914,0.6,1641.1,1640.9,10.0941]
[1744655575451,0.6,1641.1,1640.9,6.0941]
[1744655575655,0.6,1641.1,1640.9,14.59075229]
[1744655575852,6.14,1641.2,1641.0,15.14236397]
[1744655576056,6.14,1641.2,1641.1,6.09347]
[1744655576221,6.14,1641.2,1641.0,12.18753]
[1744655576421,6.14,1641.2,1640.9,8.43553]
[1744655576624,6.14,1641.2,1640.9,7.66963]
[1744655576824,12.23321,1641.2,1640.9,6.09392]
[1744655577351,6.09321,1641.2,1640.9,12.18803]
[1744655577660,6.09359,1641.1,1640.8,11.75748]
[1744655577822,6.09359,1641.1,1640.9,4.0]
[1744655578387,6.89784,1641.0,1640.9,4.0]
[1744655578575,14.905143,1641.0,1640.6,12.98197]
[1744655578775,12.992,1641.0,1640.7,4.0]
[1744655578972,6.09422,1640.9,1640.7,4.0]
[1744655579180,6.86168,1640.8,1640.7,4.0]
[1744655579487,7.41168,1640.8,1640.7,4.0]
[1744655580386,6.14,1640.9,1640.6,6.09523]
[1744655580569,13.02535,1640.9,1640.6,6.09523]
[1744655581091,13.02535,1640.9,1640.6,6.09496]
[1744655581092,6.931,1640.9,1640.6,6.09496]
[1744655581295,6.14,1640.9,1640.7,6.09479]
[1744655581460,6.14,1640.9,1640.7,12.18962]
[1744655581658,6.14,1640.9,1640.7,6.09479]
[1744655581872,6.14,1640.9,1640.8,6.09458]
[1744655582078,6.14,1640.9,1640.7,6.09479]
[1744655582379,13.01344,1641.1,1640.8,6.09458]
[1744655582682,14.924095,1641.1,1640.8,6.09458]
[1744655583178,0.6,1641.0,1640.8,6.09458]
[1744655583389,0.6,1641.0,1640.7,6.09485]
[1744655583608,0.6,1641.0,1640.7,12.18967]
[1744655584198,0.6,1641.0,1640.7,6.09482]
[1744655584499,0.6,1641.0,1640.7,12.18965]
[1744655586510,8.664654,1641.0,1640.6,6.91105]
[1744655586710,6.09435,1640.9,1640.6,6.09505]
[1744655587102,12.18873,1640.9,1640.6,6.09505]
[1744655587305,6.09435,1640.9,1640.6,6.09505]
[1744655587883,6.09435,1640.9,1640.5,6.09562]
[1744655587884,12.19011,1640.7,1640.4,10.09595]
[1744655588079,12.96478,1640.8,1640.5,6.0957]
[1744655588291,12.96478,1640.8,1640.4,12.1919]
[1744655588292,7.391558,1640.7,1640.4,12.1919]
[1744655588676,7.391558,1640.7,1640.4,6.09595]
[1744655589011,6.14,1640.8,1640.7,6.09495]
[1744655590676,6.14,1640.8,1640.6,13.02003]
[1744655592220,13.60892,1641.0,1640.6,13.02003]
[1744655593517,13.60875,1641.0,1640.7,6.09485]
[1744655593820,7.5147,1641.0,1640.7,6.09485]
[1744655594117,13.60871,1641.0,1640.6,13.02036]
[1744655595433,1.4207,1641.0,1640.7,6.09495]
[1744655595584,0.6,1641.0,1640.9,6.09421]
[1744655595932,6.14,1641.1,1641.0,6.09384]
[1744655597294,0.8588,1641.4,1641.2,6.09291]
[1744655597995,6.95116,1641.4,1641.1,6.0934]
[1744655598193,6.95116,1641.4,1641.1,12.18676]
[1744655598451,0.8588,1641.4,1641.2,6.093]
[1744655598752,0.05,1641.4,1641.3,6.09273]
[1744655599264,0.05,1641.4,1641.3,10.09273]
[1744655600555,0.6,1641.4,1641.3,4.0]
[1744655600755,6.09335,1641.2,1640.8,12.94892]
[1744655600938,18.32671,1641.2,1640.8,12.94892]
[1744655601254,4.26498397,1641.0,1640.5,11.75658]
[1744655601455,6.095,1640.7,1640.4,12.95894]
[1744655601754,0.7603,1640.7,1640.5,6.09553]
[1744655601927,6.9243,1640.9,1640.5,6.09547]
[1744655602141,6.09459,1640.8,1640.6,4.0]
[1744655602318,13.01859,1640.9,1640.6,6.09521]
[1744655602518,14.6709174,1640.9,1640.5,6.09547]
[1744655602856,6.09472,1640.8,1640.5,6.09547]
[1744655603011,6.09511,1640.7,1640.4,6.86308]
[1744655603213,6.09473,1640.8,1640.5,6.09543]
[1744655603481,1.3015,1640.7,1640.0,6.90425]
[1744655603767,12.19243,1640.4,1640.2,4.0]
[1744655603983,7.42714,1640.3,1640.2,4.0]
[1744655604271,3.7807,1640.5,1640.2,4.0]
[1744655604571,2.0637774,1640.5,1640.2,4.0]
[1744655604755,6.09644,1640.3,1640.0,6.8992]
[1744655605125,0.55,1640.3,1639.8,0.8175]
[1744655605431,6.09773,1640.0,1639.7,6.09864]
[1744655606071,0.55,1640.3,1639.7,0.7936]
[1744655606237,0.8315,1640.4,1640.2,6.09661]
[1744655606445,13.02277,1640.6,1640.2,6.09661]
[1744655606657,0.6,1640.3,1640.2,6.09661]
[1744655606971,6.09572,1640.5,1640.2,6.09661]
[1744655607127,14.6204654,1640.6,1640.2,6.09661]
[1744655607330,6.09575,1640.5,1640.2,6.09661]
[1744655607560,6.09633,1640.4,1640.0,6.09744]
[1744655607753,6.0965,1640.3,1640.0,4.0]
[1744655607955,0.8036,1640.3,1640.0,4.0]
[1744655608138,3.75828397,1640.3,1639.7,6.4137]
[1744655608461,6.09685,1640.2,1639.9,6.09791]
[1744655608668,7.396545,1640.2,1639.9,6.09791]
[1744655609032,3.8036,1640.3,1639.8,6.0983]
[1744655609239,0.8036,1640.3,1640.0,6.09744]
[1744655609898,3.609575,1640.4,1640.1,6.09695]
[1744655610203,6.86117,1640.5,1640.2,6.09681]
[1744655610708,1.5977454,1640.6,1640.3,6.09622]
[1744655611005,6.09544,1640.6,1640.3,6.09622]
[1744655611305,9.84803,1640.7,1640.3,6.09622]
[1744655611519,9.84803,1640.7,1640.1,6.4576]
[1744655611520,0.7529,1640.7,1640.4,6.09603]
[1744655611806,6.84797,1640.7,1640.4,6.09592]
[1744655611964,12.9432,1640.7,1640.4,6.09592]
[1744655612165,14.8329884,1640.7,1640.4,6.09592]
[1744655612413,14.8329884,1640.7,1640.3,12.19284]
[1744655612772,6.09543,1640.6,1640.3,6.09642]
[1744655612971,6.09543,1640.6,1640.3,12.19271]
[1744655613314,6.09534,1640.6,1640.3,6.09629]
[1744655613612,6.09534,1640.6,1640.3,12.1926]
[1744655613911,0.7529,1640.7,1640.3,1.21926]
[1744655614062,0.7529,1640.7,1640.5,6.09562]
[1744655615076,0.7529,1640.7,1640.4,6.09607]
[1744655615394,6.8479,1640.7,1640.3,12.19266]
[1744655615579,6.09547,1640.6,1640.3,12.19266]
[1744655616505,12.19114,1640.6,1640.2,6.0967]
[1744655616696,0.6,1640.5,1640.2,12.1934]
[1744655616880,6.69572,1640.5,1640.2,7.9618]
[1744655617076,0.6,1640.5,1640.2,6.09657]
[1744655617512,0.6,1640.5,1640.2,12.19326]
[1744655617672,6.09645,1640.3,1640.0,6.09737]
[1744655617875,6.09645,1640.3,1640.1,4.0]
[1744655618172,13.06347,1640.4,1640.1,10.09686]
[1744655618374,20.526167,1640.4,1640.1,10.09686]
[1744655618606,14.429817,1640.4,1640.1,10.09686]
[1744655618812,14.429817,1640.4,1640.1,4.0]
[1744655618813,6.09662,1640.3,1640.1,4.0]
[1744655618969,6.09662,1640.3,1640.0,6.09755]
[1744655619170,6.09662,1640.3,1640.0,6.09745]
[1744655619409,12.1932,1640.3,1639.9,12.95534]
[1744655619608,12.1932,1640.3,1640.0,6.09755]
[1744655619806,14.2458847,1640.3,1640.0,6.09755]
[1744655620509,8.1492647,1640.3,1640.0,12.19501]
[1744655620815,6.09658,1640.3,1640.0,12.19489]
[1744655620983,14.429807,1640.4,1640.1,6.09717]
[1744655621185,14.429807,1640.4,1640.1,6.09707]
[1744655621709,20.526027,1640.4,1640.1,6.09707]
[1744655621886,6.09647,1640.3,1640.0,12.1949]
[1744655622086,20.526237,1640.4,1640.0,6.09744]
[1744655622276,20.526237,1640.4,1640.0,12.1949]
[1744655622908,6.09662,1640.3,1640.0,6.09744]
[1744655623121,6.09682,1640.2,1639.8,11.75827]
[1744655623321,6.09729,1640.1,1639.8,17.85646]
[1744655623473,6.09685,1640.2,1639.9,6.09782]
[1744655623675,8.0895667,1640.3,1640.0,6.09745]
[1744655624011,14.1863367,1640.3,1640.0,6.09743]
[1744655624170,7.51566367,1640.2,1639.8,12.19644]
[1744655624372,7.51566367,1640.2,1639.8,6.09825]
[1744655624593,7.51566367,1640.2,1639.9,6.09791]
[1744655624815,7.51561367,1640.2,1639.9,6.09791]
[1744655625411,1.41863367,1640.2,1639.9,12.19571]
[1744655625790,1.41863367,1640.2,1640.0,6.0975]
[1744655627069,7.55863367,1640.2,1640.0,6.0975]
[1744655628317,6.14,1640.2,1640.0,6.0975]
[1744655628806,12.23686,1640.2,1639.9,6.09782]
[1744655628975,12.23686,1640.2,1639.9,6.09781]
[1744655629174,18.33383,1640.2,1639.9,6.09781]
[1744655629517,6.09817,1639.9,1639.6,6.09895]
[1744655629819,6.09817,1639.9,1639.7,4.0]
[1744655629820,6.89921,1639.8,1639.7,4.0]
[1744655630742,7.44921,1639.8,1639.7,4.0]
[1744655630895,6.09904,1639.7,1639.3,12.20007]
[1744655631090,0.55,1639.6,1639.2,6.4749]
[1744655631289,6.09997,1639.4,1639.3,4.0]
[1744655631511,12.96668,1639.5,1639.3,4.0]
[1744655631800,3.609904,1639.6,1639.3,10.10016]
[1744655631996,6.09921,1639.6,1639.3,6.87434]
[1744655632321,6.09964,1639.5,1639.1,12.97592]
[1744655632485,6.09964,1639.5,1639.2,10.1005]
[1744655632888,6.09964,1639.5,1639.1,6.8751]
[1744655633117,12.19928,1639.5,1639.2,6.10044]
[1744655633475,12.19928,1639.5,1639.1,6.8751]
[1744655633476,6.09991,1639.4,1639.1,6.8751]
[1744655633583,12.1999,1639.4,1639.1,6.8751]
[1744655633922,6.09991,1639.4,1639.1,6.8751]
[1744655634127,0.8195,1639.3,1638.9,6.10157]
[1744655634422,6.10055,1639.2,1639.0,4.0]
[1744655634624,13.630471,1639.3,1639.0,4.0]
[1744655635417,6.10059,1639.2,1639.0,4.0]
[1744655635618,6.10059,1639.2,1638.9,12.20301]
[1744655635906,6.14,1639.4,1639.1,12.20147]
[1744655636119,6.09,1639.4,1639.2,6.10053]
[1744655636421,0.6,1639.3,1639.1,12.20151]
[1744655636624,0.6,1639.3,1639.2,6.10053]
[1744655637003,6.09,1639.4,1639.3,6.10016]
[1744655637602,6.09,1639.4,1639.2,6.10053]
[1744655637802,12.18981,1639.4,1639.1,6.85778]
[1744655637999,6.10031,1639.3,1639.0,6.10117]
[1744655638237,6.10031,1639.3,1639.1,4.0]
[1744655638998,14.769429,1639.4,1639.1,10.1009]
[1744655639207,20.869429,1639.4,1639.1,4.0]
[1744655639536,20.869429,1639.4,1639.0,12.20232]
[1744655639825,2.0869429,1639.3,1639.1,6.10078]
[1744655640014,6.09,1639.4,1638.9,0.7783]
[1744655640187,0.7634,1639.6,1639.2,6.86402]
[1744655640394,6.09,1639.7,1639.4,6.09978]
[1744655640594,6.09,1639.7,1639.2,6.86402]
[1744655640595,0.7634,1639.6,1639.0,4.7637]
[1744655640924,0.45526294,1640.0,1639.0,4.7637]
[1744655640925,6.09,1639.8,1639.7,6.09867]
[1744655641238,18.28622,1639.9,1639.3,6.86371]
[1744655641401,6.8534,1640.0,1639.5,0.7621]
[1744655641601,6.09,1640.0,1639.6,6.09904]
[1744655641803,6.09,1640.0,1639.6,1.252014]
[1744655642005,12.99247,1639.9,1639.5,18.61967]
[1744655642331,6.09,1640.0,1639.7,6.09846]
[1744655642517,12.18759,1640.0,1639.7,6.09846]
[1744655643129,12.18759,1640.0,1639.7,12.19699]
[1744655643342,6.09835,1639.8,1639.5,12.5204]
[1744655643629,6.09917,1639.6,1639.4,4.0]
[1744655643845,6.64871,1639.7,1639.4,10.09976]
[1744655644036,12.99768,1639.8,1639.4,4.0]
[1744655644207,12.99768,1639.8,1639.5,6.09917]
[1744655644404,6.09,1639.8,1639.6,6.09891]
[1744655644607,6.09,1639.8,1639.7,6.09867]
[1744655645244,0.7932,1640.0,1639.7,6.09867]
[1744655645391,6.09809,1639.9,1639.6,6.91305]
[1744655645738,6.09809,1639.9,1639.4,4.0]
[1744655645739,6.88658,1639.6,1639.4,4.0]
[1744655646338,0.7873,1639.6,1639.4,4.0]
[1744655646537,6.8969,1639.8,1639.4,4.0]
[1744655646832,6.09938,1639.6,1639.3,6.10013]
[1744655647036,12.19869,1639.6,1639.3,6.10013]
[1744655647206,12.19869,1639.6,1639.2,17.85982]
[1744655647207,6.09946,1639.5,1639.2,17.85982]
[1744655647812,12.19862,1639.6,1639.2,17.85982]
[1744655647999,0.55,1639.6,1639.3,6.0998]
[1744655648412,6.64925,1639.6,1639.3,6.0998]
[1744655648611,6.09996,1639.4,1639.2,5.659]
[1744655649513,6.92862,1639.5,1639.2,5.659]
[1744655649713,0.8292,1639.5,1639.2,11.75951]
[1744655649915,6.09,1639.6,1639.3,6.10013]
[1744655650236,12.18927,1639.6,1639.3,6.88937]
[1744655650436,6.09943,1639.5,1639.2,17.85986]
[1744655650608,6.09943,1639.5,1639.2,17.85984]
[1744655650939,6.09,1639.6,1639.5,6.09942]
[1744655651444,3.7754,1639.9,1639.4,6.90005]
[1744655651445,0.7754,1639.9,1639.4,0.8004]
[1744655651637,6.90531,1640.1,1639.8,6.09828]
[1744655651822,14.91188,1640.1,1639.8,6.09828]
[1744655652495,14.91188,1640.1,1639.7,13.01372]
[1744655652701,6.09761,1640.0,1639.7,6.91506]
[1744655652902,12.19543,1640.0,1639.7,6.91506]
[1744655653502,6.09761,1640.0,1639.7,13.01372]
[1744655654137,9.90535,1640.1,1639.8,6.09825]
[1744655654337,0.764,1640.3,1639.8,1.36231178]
[1744655654510,6.86051,1640.3,1640.0,6.09738]
[1744655654710,12.18617,1640.4,1640.0,6.89178]
[1744655654911,6.09,1640.4,1640.1,6.09718]
[1744655655112,6.09,1640.4,1640.2,12.19362]
[1744655655319,12.19103,1640.6,1640.2,12.19362]
[1744655655513,10.315113,1640.5,1640.1,12.19415]
[1744655655837,6.0962,1640.4,1640.0,12.55082]
[1744655656039,1.219103,1640.5,1640.2,6.09671]
[1744655656243,6.09,1640.7,1640.5,6.09552]
[1744655656418,6.901,1641.0,1640.6,6.0952]
[1744655656616,3.0,1640.9,1640.6,6.0952]
[1744655656813,12.99518,1641.0,1640.6,12.19042]
[1744655657154,6.09,1641.1,1640.8,6.09429]
[1744655657155,6.09361,1641.1,1640.8,6.09429]
[1744655657436,6.09397,1641.0,1640.7,6.89039]
[1744655657742,6.783651,1641.1,1640.7,6.89035]
[1744655657917,6.783651,1641.1,1640.8,6.09457]
[1744655658240,12.877341,1641.1,1640.7,12.9852]
[1744655658442,6.783651,1641.1,1640.7,12.9852]
[1744655658736,12.877321,1641.1,1640.8,6.09457]
[1744655659447,6.09391,1641.0,1640.7,0.7955]
[1744655659605,6.09391,1641.0,1640.7,6.89044]
[1744655659806,6.09391,1641.0,1640.7,0.7955]
[1744655660336,12.1881,1641.0,1640.7,0.7955]
[1744655660502,6.09434,1640.9,1640.5,12.57008]
[1744655660708,6.09434,1640.9,1640.6,10.0953]
[1744655660939,6.09434,1640.9,1640.6,4.0]
[1744655661239,6.09511,1640.7,1640.5,6.4745]
[1744655661632,6.09465,1640.8,1640.5,6.4745]
[1744655661805,6.09465,1640.8,1640.5,18.66572]
[1744655662007,6.09465,1640.8,1640.5,12.57005]
[1744655662710,6.09465,1640.8,1640.5,18.66563]
[1744655662911,6.09465,1640.8,1640.5,12.57005]
[1744655663569,1.910623,1640.8,1640.5,5.659]